Cogmind - Beta 11 @@@ ROGUE MODE // 2022.03.18 @ 12:40:23 Player: Jack Trades Result: Destroyed by S-27 Virus with Autogun Performance ------------- Evolutions (4) 2000 Regions Visited (7) 1400 Robots Destroyed (51) 255 Value Destroyed (1975) 1975 Prototype IDs (1) 20 Alien Tech Used (0) 0 Bonus (640) 640 TOTAL SCORE: 6290 Bonus ------- Follower Combat Kills 140 Entered DSFs 500 Cogmind --------- Core Integrity 0/850 Matter 290/300 Energy 99/100 System Corruption 1% Temperature Cool (0) Movement Core (50) Location -6/Factory Parts ------- > --- POWER (2) -------- (None) > --- PROPULSION (3) --- (None) > --- UTILITY (7) ------ (None) > --- WEAPON (3) ------- (None) > --- INVENTORY (5) ---- Light Deuterium Engine Light Nuclear Core Advanced Visual Processing Unit Advanced ECM Suite Advanced ECM Suite Peak State ------------ > --- POWER ------------ Light Nuclear Core Micro Nuclear Core > --- PROPULSION ------- Airjet Airjet Airjet > --- UTILITY ---------- Medium Storage Unit Improved Trap Scanner Advanced Visual Processing Unit Improved Sensor Array Advanced Targeting Computer Advanced Targeting Computer > --- WEAPON ----------- Enhanced Autogun Enhanced Autogun Remote Datajack > --- INVENTORY -------- Light Deuterium Engine Advanced Visual Processing Unit Advanced ECM Suite Advanced ECM Suite Advanced ECM Suite Heavy Rocket Launcher [Rating: 48] Favorites ----------- Power Light Nuclear Core Engine Ion Engine Power Core Light Nuclear Core Propulsion Improved Carbon-fiber Leg Treads Light Treads Leg Improved Carbon-fiber Leg Hover Unit Airjet Utility Hardened Light Armor Plating Device Improved Sensor Array Storage Medium Storage Unit Processor Advanced Visual Processing Unit Protection Hardened Light Armor Plating Weapon Enhanced Autogun Energy Gun EM Pulse Gun Energy Cannon Plasma Cannon Ballistic Gun Enhanced Autogun Launcher Heavy Rocket Launcher Special Weapon Remote Datajack Slashing Weapon Blade Saw Special Melee Weapon Datajack Build | -11 -10 -9 -8 -8 -7 -7 -6 ------- Run | Scr Mat Mat Mat Sto Fac DSF Fac Slots Evolved 8 | . . 2 2 . 2 . 2 Power 1 | . . . . . . . 1 Propulsion 1 | . . . 1 . . . . Utility 5 | . . 2 1 . 2 . . Weapon 1 | . . . . . . . 1 Parts Attached 90 | 6 5 11 18 14 4 20 12 Power 11 | 1 . 1 1 3 . 1 4 Engine 7 | 1 . 1 1 2 . . 2 Core 4 | . . . . 1 . 1 2 Reactor . | . . . . . . . . Propulsion 24 | 2 2 4 4 3 . 7 2 Treads 2 | . . . . . . . 2 Leg 11 | 2 . 2 4 3 . . . Wheel . | . . . . . . . . Hover 11 | . 2 2 . . . 7 . Flight . | . . . . . . . . Utility 36 | 1 2 5 11 3 3 7 4 Device 16 | . 1 2 4 1 2 3 3 Storage 2 | 1 . . 1 . . . . Processor 3 | . . . 1 . . 2 . Hackware . | . . . . . . . . Protection 15 | . 1 3 5 2 1 2 1 Artifact . | . . . . . . . . Weapon 19 | 2 1 1 2 5 1 5 2 Energy Gun 4 | 2 1 1 . . . . . Energy Cannon 3 | . . . 2 1 . . . Ballistic Gun 7 | . . . . 3 1 3 . Ballistic Cannon . | . . . . . . . . Launcher 2 | . . . . . . 1 1 Special Weapon 1 | . . . . . . . 1 Impact Weapon . | . . . . . . . . Slashing Weapon 1 | . . . . . . 1 . Piercing Weapon . | . . . . . . . . Special Melee Weapon 1 | . . . . 1 . . . Unidentified Prototypes 1 | . . . . 1 . . . Parts Lost 23 | . . 1 . 6 . 8 8 Power 3 | . . . . 1 . 1 1 Propulsion 9 | . . 1 . 3 . 2 3 Utility 7 | . . . . 2 . 4 1 Weapon 4 | . . . . . . 1 3 Highest Loss Streak 6 | . . 1 . 2 . 6 5 To Critical Strikes . | . . . . . . . . Average Slot Usage (%) 90 | . 98 98 97 95 100 71 72 Engine 7 | . 14 11 9 7 . . 2 Core 2 | . . . . 1 7 4 7 Treads 1 | . . . . . . . 5 Leg 13 | . . 14 27 23 23 1 . Hover 7 | . 27 6 . . . 18 8 Device 9 | . 1 9 16 9 23 11 8 Storage 9 | . 14 11 9 9 7 7 5 Processor 7 | . . . 2 9 7 9 18 Protection 13 | . 12 22 15 17 15 5 . Energy Gun 6 | . 27 21 1 . . . . Energy Cannon 3 | . . . 16 5 . . . Ballistic Gun 7 | . . . . 12 15 11 9 Naked Turns 50 | . . . . . . . 50 Heaviest Build 49 | 14 19 29 44 42 46 49 46 Greatest Support 55 | 20 20 20 55 54 38 38 40 Greatest Overweight (x) 9 | . 1 9 1 1 1 2 9 Average Overweight (x) . | . . 1 . . 1 . . Largest Inventory Capacity 10 | 8 8 8 10 10 10 10 10 Average Capacity 9 | 6 8 8 8 10 10 10 9 Most Carried 10 | 4 8 8 10 10 9 10 9 Average Carried 7 | 1 7 6 8 8 8 6 6 Final Capacity 10 | 8 8 8 10 10 10 10 5 Final Carried 10 | 3 8 6 9 10 8 7 5 Class Distribution -------------------- 88% | Mutant 8% | Scavenger-Mutant 3% | Commander-Mutant Dominant Class ---------------- Mutant | -10/Materials Mutant | -9/Materials Mutant | -8/Materials Mutant | -8/Storage Scavenger-Mutant | -7/Factory Mutant | -7/DSF Mutant | -6/Factory Resources | -11 -10 -9 -8 -8 -7 -7 -6 ----------- Run | Scr Mat Mat Mat Sto Fac DSF Fac Matter Collected 1873 | 216 84 200 176 533 . 254 410 Remotely . | . . . . . . . . Salvage Created 2183 | . 169 283 222 860 . 374 275 Parts 147 | . 13 22 13 55 . 25 19 Haulers Intercepted . | . . . . . . . . Recyclers Shooed . | . . . . . . . . Parts Field Recycled . | . . . . . . . . Retrieved Matter . | . . . . . . . . Parts Self-Destructed . | . . . . . . . . Prevented . | . . . . . . . . Kills | -11 -10 -9 -8 -8 -7 -7 -6 ------- Run | Scr Mat Mat Mat Sto Fac DSF Fac Combat Hostiles Destroyed 46 | . 4 6 3 19 . 9 5 Melee 5 | . . . . 2 . 2 1 Guns 31 | . 3 5 . 15 . 4 4 Cannons 5 | . . . 3 2 . . . AOE 5 | . 1 1 . . . 3 . Classes Destroyed 9 | . 1 1 1 3 . 2 1 Watcher 5 | . . . 2 2 . . 1 Swarmer 7 | . . . . 6 . . 1 Cutter 2 | . . . . . . 2 . Grunt 20 | . 4 4 2 4 . 6 . Brawler 1 | . . . . 1 . . . Sentry 12 | . . 2 1 7 . . 2 Hunter 1 | . . . . 1 . . . Programmer 2 | . . . . . . . 2 Heavy 1 | . . . . . . 1 . Best Kill Streak 7 | . 4 4 1 7 . 3 1 Combat Bots Only 7 | . 4 4 1 7 . 3 1 Max Kills in Single Turn 2 | . 1 1 1 1 . 2 1 Gunslinging . | . . . . . . . . Exploded 2 | . 1 1 . . . 2 . Melee 1 | . . . . 1 . 1 1 Uniques/NPCs Destroyed . | . . . . . . . . Combat | -11 -10 -9 -8 -8 -7 -7 -6 -------- Run | Scr Mat Mat Mat Sto Fac DSF Fac Damage Taken 5160 | . 135 396 238 1612 . 1062 1717 Core 1406 | . 11 164 10 136 . 227 858 Absorbed by Shields 188 | . . . 76 . . 46 66 Regen/Repaired (Parts) 210 | . . 22 188 . . . . Core Remaining (%) 78 | 100 95 59 . 73 . 67 . Volleys Fired 175 | . 10 14 15 63 . 41 32 Largest 2 | . 2 2 2 2 . 2 2 Hottest 160 | . 80 80 160 160 . 53 50 Shots Fired 300 | . 20 28 29 126 . 42 55 Gun 243 | . 20 28 . 102 . 39 54 Cannon 53 | . . . 29 24 . . . Launcher 3 | . . . . . . 3 . Special 1 | . . . . . . . 1 Kinetic 195 | . . . . 102 . 39 54 Thermal 53 | . . . 29 24 . . . Explosive 3 | . . . . . . 3 . Electromagnetic 48 | . 20 28 . . . . . Robot Hit Streak 20 | . 3 9 13 9 . 10 20 Robot Miss Streak 5 | . 2 1 4 5 . 5 1 Penetration Max . | . . . . . . . . Secondary Targets 1 | . . . . 1 . . . Max Gunslinging Chain 1 | . . . . 1 . . . Shots Hit Robots 207 | . 11 23 15 74 . 38 46 Core Hits 101 | . 8 12 8 37 . 20 16 Critical Kills 1 | . . . . 1 . . . Critical Parts Destroyed 1 | . . . . . . 1 . Critical Strikes 3 | . . 1 . 1 . 1 . Destroy 2 | . . . . 1 . 1 . Corrupt 1 | . . 1 . . . . . Melee Attacks 10 | . . . . 1 . 9 . Impact . | . . . . . . . . Slashing 9 | . . . . . . 9 . Piercing . | . . . . . . . . Sneak Attacks 1 | . . . . 1 . . . Combat Hostiles . | . . . . . . . . Follow-up Attacks . | . . . . . . . . Damage Inflicted 4596 | . 186 395 398 1523 . 1258 836 Guns 2890 | . 141 291 . 1140 . 519 799 Cannons 614 | . . . 386 228 . . . Explosions 794 | . 45 104 . . . 645 . Melee 93 | . . . . . . 93 . Ramming 205 | . . . 12 155 . 1 37 Kinetic 2458 | . . . . 1140 . 519 799 Thermal 763 | . 45 104 386 228 . . . Explosive 645 | . . . . . . 645 . Electromagnetic 432 | . 141 291 . . . . . Impact . | . . . . . . . . Slashing 93 | . . . . . . 93 . Piercing . | . . . . . . . . Highest Corruption 1 | . . . . 1 . 1 1 Average Corruption 1 | . . . . 1 . 1 1 Corruption Purged . | . . . . . . . . Corruption Blocked . | . . . . . . . . Effects 5 | . . . . 2 . 3 . Message Errors 1 | . . . . . . 1 . Matter Fused 2 | . . . . 2 . . . Misfires 1 | . . . . . . 1 . Weapon Failures 1 | . . . . . . 1 . Overload Shots . | . . . . . . . . Overflow Damage 14 | . . 7 2 . . 5 . Projectiles 2 | . . . 2 . . . . Explosions 12 | . . 7 . . . 5 . Melee . | . . . . . . . . Knockbacks . | . . . . . . . . Impact . | . . . . . . . . Kinetic . | . . . . . . . . Secondary . | . . . . . . . . Self-Inflicted Damage 56 | . 23 33 . . . . . Shots 2 | . 1 1 . . . . . Rammed 11 | . . . . . . 1 10 Targets Rammed 55 | . . . 5 39 . 1 10 Kicked 44 | . . . 5 39 . . . Crushed . | . . . . . . . . Highest Temperature 636 | . 156 636 464 405 . 2 68 Average Temperature 110 | . 75 307 132 87 . 2 25 Received Heat Transfer 1236 | . 63 147 129 540 . 243 114 Effects 16 | . . 15 . 1 . . . Shutdowns 3 | . . 2 . 1 . . . Energy Bleed 1 | . . 1 . . . . . Matter Decay 2 | . . 2 . . . . . Short Circuit 1 | . . 1 . . . . . Damage (minor) 2 | . . 2 . . . . . Damage (major) 6 | . . 6 . . . . . Damage (core) 1 | . . 1 . . . . . Siege Activations . | . . . . . . . . Robots Corrupted . | . . . . . . . . Combat Hostiles . | . . . . . . . . Parts Fried 2 | . 1 1 . . . . . Impact Corruptions 1 | . . . . 1 . . . Robots Melted . | . . . . . . . . Combat Hostiles . | . . . . . . . . Parts Melted 4 | . . . 2 2 . . . Heat Transferred 1350 | . . 150 750 450 . . . Parts Sabotaged . | . . . . . . . . Parts Stolen . | . . . . . . . . Parts Stripped . | . . . . . . . . Power Chain Reactions 3 | . 1 2 . . . . . Missiles Intercepted . | . . . . . . . . Alert | -11 -10 -9 -8 -8 -7 -7 -6 ------- Run | Scr Mat Mat Mat Sto Fac DSF Fac Peak Influence 372 | . 146 213 231 371 173 372 313 Initial 195 | . . . 30 13 168 121 195 Average 160 | . 66 129 142 199 172 204 190 Maximum Alert Level 1 | . . 1 1 1 . 1 1 Low Security (%) 64 | 100 100 57 92 46 100 53 52 Level 1 35 | . . 42 7 53 . 46 47 Level 2 . | . . . . . . . . Level 3 . | . . . . . . . . Level 4 . | . . . . . . . . Level 5 . | . . . . . . . . High Security . | . . . . . . . . Max Security . | . . . . . . . . Sterilizations 1 | . . . . . . 1 . Squads Dispatched 12 | . . 3 1 3 . 2 3 Investigation 1 | . . 1 . . . . . Extermination 1 | . . . . . . . 1 Reinforcement 9 | . . 2 1 3 . 2 1 Assault . | . . . . . . . . Garrison 1 | . . . . . . . 1 Intercept . | . . . . . . . . Searches Triggered . | . . . . . . . . Construction Impeded . | . . . . . . . . Haulers Reinforced . | . . . . . . . . Active Scanning Responses . | . . . . . . . . Cargo Convoy Interrupts . | . . . . . . . . Stealth | -11 -10 -9 -8 -8 -7 -7 -6 --------- Run | Scr Mat Mat Mat Sto Fac DSF Fac Distress Signals 9 | . 1 1 . 5 . . 2 Communications Jammed . | . . . . . . . . Distress Signals . | . . . . . . . . Times Spotted 104 | . 6 12 7 37 . 17 25 Peak Tracking Total 15 | . 3 5 2 7 . 4 15 Tactical Retreats 9 | . . . . 2 . 6 1 Traps | -11 -10 -9 -8 -8 -7 -7 -6 ------- Run | Scr Mat Mat Mat Sto Fac DSF Fac Traps Triggered 4 | . 1 1 . 1 . . 1 Indirectly . | . . . . . . . . Trap Hack Attempts . | . . . . . . . . Triggered . | . . . . . . . . Disarmed . | . . . . . . . . Reprogrammed . | . . . . . . . . Reused . | . . . . . . . . Traps Extracted . | . . . . . . . . Installed . | . . . . . . . . Triggered . | . . . . . . . . Machines | -11 -10 -9 -8 -8 -7 -7 -6 ---------- Run | Scr Mat Mat Mat Sto Fac DSF Fac Machines Disabled 5 | . . 2 1 2 . . . Max in Single Turn 1 | . . 1 1 1 . . . Garrison Access 2 | . . . . . . . 2 Machines Sabotaged . | . . . . . . . . Garrisons Compromised . | . . . . . . . . Overloaded Fab Kills . | . . . . . . . . Hacking | -11 -10 -9 -8 -8 -7 -7 -6 --------- Run | Scr Mat Mat Mat Sto Fac DSF Fac Machines Accessed 19 | . 2 3 4 5 1 . 4 Terminals 12 | . 2 2 1 4 1 . 2 Fabricators . | . . . . . . . . Repair Stations 3 | . . 1 2 . . . . Recycling Units 1 | . . . . 1 . . . Scanalyzers 1 | . . . 1 . . . . Garrison Access 2 | . . . . . . . 2 Total Hacks 58 | . 11 12 17 9 2 . 7 Successful 39 | . 8 8 15 4 1 . 3 Failed 19 | . 3 4 2 5 1 . 4 Catastrophic . | . . . . . . . . Database Lockouts . | . . . . . . . . Manual . | . . . . . . . . Terminals 36 | . 11 6 5 8 2 . 4 Fabricators . | . . . . . . . . Repair Stations 12 | . . 6 6 . . . . Recycling Units 1 | . . . . 1 . . . Scanalyzers 6 | . . . 6 . . . . Garrison Access 3 | . . . . . . . 3 Terminal Hacks 22 | . 8 4 5 3 1 . 1 Record 3 | . 3 . . . . . . Open Door 3 | . . . . 3 . . . Open DSF 2 | . . . . . 1 . 1 Emergency Access Points 1 | . 1 . . . . . . Alert Level 4 | . . 2 2 . . . . Locate Traps 3 | . 1 1 1 . . . . Security Status 1 | . . . 1 . . . . Transport Status 1 | . 1 . . . . . . Reinforcement Status 1 | . 1 . . . . . . Registered Prototypes 1 | . 1 . . . . . . Zone Layout 2 | . . 1 1 . . . . Fabricator Hacks . | . . . . . . . . Repair Station Hacks 8 | . . 4 4 . . . . Scan Component 5 | . . 3 2 . . . . Repair 3 | . . 1 2 . . . . Recycling Unit Hacks 1 | . . . . 1 . . . Report Inventory 1 | . . . . 1 . . . Scanalyzer 6 | . . . 6 . . . . Insert Component 3 | . . . 3 . . . . Analyze 3 | . . . 3 . . . . Garrison Access Hacks 2 | . . . . . . . 2 Seal Access 2 | . . . . . . . 2 Unauthorized Hacks . | . . . . . . . . Terminals . | . . . . . . . . Fabricators . | . . . . . . . . Repair Stations . | . . . . . . . . Recycling Units . | . . . . . . . . Scanalyzers . | . . . . . . . . Garrison Access . | . . . . . . . . Data Cores Recovered . | . . . . . . . . Used . | . . . . . . . . Hacking Detections 14 | . 2 3 3 2 1 . 3 Full Trace Events 1 | . . 1 . . . . . Feedback Events . | . . . . . . . . Feedback Blocked . | . . . . . . . . Robot Schematics Acquired . | . . . . . . . . Robots Built . | . . . . . . . . Authchips . | . . . . . . . . Time . | . . . . . . . . Total Robot Build Rating . | . . . . . . . . Part Schematics Acquired 2 | . . . 2 . . . . Parts Built . | . . . . . . . . Authchips . | . . . . . . . . Time . | . . . . . . . . Total Part Build Rating . | . . . . . . . . Parts Repaired 3 | . . 1 2 . . . . Time 86 | . . 26 60 . . . . Parts Recycled . | . . . . . . . . Recycled Matter . | . . . . . . . . Retrieved Matter . | . . . . . . . . Retrieved Components . | . . . . . . . . Parts Scanalyzed 3 | . . . 3 . . . . Part Schematics Acquired 2 | . . . 2 . . . . Parts Damaged . | . . . . . . . . Bothacking | -11 -10 -9 -8 -8 -7 -7 -6 ------------ Run | Scr Mat Mat Mat Sto Fac DSF Fac Used RIF Installer . | . . . . . . . . Robots Hacked 1 | . . . . . . . 1 Non-combat 1 | . . . . . . . 1 Combat . | . . . . . . . . Robot Hacks Applied 1 | . . . . . . . 1 parse_system 1 | . . . . . . . 1 Relay Couplers Released . | . . . . . . . . Fabnet Peak Effective % . | . . . . . . . . Robots Rewired . | . . . . . . . . Allies Hacked . | . . . . . . . . Hacks Repelled . | . . . . . . . . Allies | -11 -10 -9 -8 -8 -7 -7 -6 -------- Run | Scr Mat Mat Mat Sto Fac DSF Fac Total Allies 10 | . . . . 10 . . . Largest Group 10 | . . . . 10 . . . Highest-Rated Group 173 | . . . . 173 . . . Highest-Rated Ally 29 | . . . . 29 . . . Total Orders 1 | . . . . 1 . . . ROAM 1 | . . . . 1 . . . Ally Attacks 44 | . . . . 44 . . . Total Damage 597 | . . . . 597 . . . Kills 5 | . . . . 5 . . . Allies Corrupted . | . . . . . . . . Allies Melted . | . . . . . . . . Intel | -11 -10 -9 -8 -8 -7 -7 -6 ------- Run | Scr Mat Mat Mat Sto Fac DSF Fac Robot Analysis Total . | . . . . . . . . Derelict Logs Recovered . | . . . . . . . . Drone Launches 4 | . . . . . 4 . . Drone Recoveries 1 | . . . . . . 1 . Exploration | -11 -10 -9 -8 -8 -7 -7 -6 ------------- Run | Scr Mat Mat Mat Sto Fac DSF Fac Turns Passed 3461 | 69 419 469 423 1069 98 270 644 Spaces Moved 2008 | 49 315 175 202 590 49 137 491 Core 103 | 10 . 1 . . . . 92 Treads 106 | . . . . . . . 106 Legs 1015 | 39 9 119 202 590 49 7 . Wheels . | . . . . . . . . Hover 784 | . 306 55 . . . 130 293 Flight . | . . . . . . . . Fastest Speed 50 | 50 56 116 120 120 190 52 50 Average Speed 119 | 105 113 187 121 120 190 83 101 Slowest Speed 500 | 120 120 500 190 190 190 260 500 Overloaded Moves . | . . . . . . . . Propulsion Burnouts . | . . . . . . . . Robots Hopped . | . . . . . . . . Cave-ins Triggered . | . . . . . . . . Exploration Rate (%) 31 | 3 44 20 16 66 2 79 19 Regions Visited 7 Branch Regions 1 Pre-discovered Areas . | . . . . . . . . Known Exits Taken 1 | . . . . . 1 . . Unknown Exits Taken 5 | 1 1 1 1 1 . . . Scrap Searched . | . . . . . . . . Spaces Dug . | . . . . . . . . Terrain Destroyed 60 | . 4 6 11 11 . 28 . Melee . | . . . . . . . . Projectile 22 | . . . 11 11 . . . AOE 38 | . 4 6 . . . 28 . Terrain Rammed . | . . . . . . . . Walls Destroyed . | . . . . . . . . Machines Disabled . | . . . . . . . . Actions | -11 -10 -9 -8 -8 -7 -7 -6 --------- Run | Scr Mat Mat Mat Sto Fac DSF Fac Total 2803 | 67 358 287 349 847 54 246 595 Wait 322 | . 12 78 90 111 . 3 28 Move 2001 | 48 314 174 201 589 48 136 491 Hop . | . . . . . . . . Pick Up 85 | 11 11 6 9 17 1 20 10 Fast Attach 8 | . 1 . 5 2 . . . Attach 43 | 6 2 4 4 4 2 13 8 Detach 11 | . 1 . 3 . . 4 3 Swap 39 | . 2 7 9 8 2 7 4 Drop 49 | 2 5 4 8 13 1 12 4 Fire 175 | . 10 14 15 63 . 41 32 Melee 10 | . . . . 1 . 9 . Ram 1 | . . . . . . 1 . Kick 44 | . . . 5 39 . . . Crush 10 | . . . . . . . 10 Escape Stasis 5 | . . . . . . . 5 Rewire . | . . . . . . . . Trap . | . . . . . . . . Miscellaneous . | . . . . . . . . Route ------- -11/Scrapyard -10/Materials -9/Materials -8/Materials -8/Storage -7/Factory -7/DSF -6/Factory History --------- Turn | Location | Event 38 | -11/Scrapyard | Discovered new exit (range 16) 70 | -11/Scrapyard | Entered Materials 300 | -10/Materials | Build established: Mutant 411 | -10/Materials | Discovered new exit (range 11) 489 | -10/Materials | Entered another Materials area 489 | -9/Materials | Evolved 2 slots: Utility x2 743 | -9/Materials | Repaired EM Pulse Gun 809 | -9/Materials | Discovered new exit (range 13) 958 | -9/Materials | Entered another Materials area 958 | -8/Materials | Evolved 2 slots: Propulsion x1, Utility x1 1024 | -8/Materials | Discovered new exit (range 15) 1165 | -8/Materials | Repaired Hrd. Light Armor Plating 1319 | -8/Materials | Repaired Imp. Shield Generator 1381 | -8/Materials | Entered Storage 1619 | -8/Storage | Assisted by bots powering up and referring to "LRC-V3" 2291 | -8/Storage | Discovered new exit (range 19) 2406 | -8/Storage | Destroyed 7 combat bots 2450 | -8/Storage | Entered Factory 2450 | -7/Factory | Evolved 2 slots: Utility x2 2456 | -7/Factory | Identified exit to DSF 2548 | -7/Factory | Entered DSF 2548 | -7/DSF | Accompanied by 4 allies 2605 | -7/DSF | Additional patrols routed to DSF 2699 | -7/DSF | Lost 6 parts (1p1n3u1w) 2783 | -7/DSF | Discovered new exit (range 19) 2804 | -7/DSF | Sterilization system engaged 2818 | -7/DSF | Entered Factory 2818 | -6/Factory | Evolved 2 slots: Power x1, Weapon x1 3194 | -6/Factory | Garrison activated, responded to threat 3412 | -6/Factory | Released all parts (7) 3434 | -6/Factory | Core integrity fell below 50% 3438 | -6/Factory | Lost 5 parts (1p2n2w) 3439 | -6/Factory | Core integrity fell below 20% 3462 | -6/Factory | Destroyed by S-27 Virus with Autogun Last Messages --------------- 03418_ R-10 Processor collects Imp. Trap Scanner. 03419_ T-07 Excavator is excavating. 03421_ O-24 Administrator sends out distress signal. 03421_ O-24 Administrator: "IFF HANDSHAKE FAILED. SECURING TERMINAL." 03423_ T-07 Excavator is excavating. 03426_ ALERT: Hostiles spotted, dispatching reinforcements to Terminal F003. 03427_ Triggered Stasis Trap. 03427_ A bubble of rippling energy engulfs the area. 03427_ Field strength at 94. 03428_ Field strength at 84. 03429_ Field strength at 64. 03430_ Field strength at 54. 03431_ Field strength at 28. 03432_ Field strength at 11. 03432_ Stasis field depleted. 03433_ Penetrated by Slug. 03434_ Slug penetrates Terminal. 03437_ Slug penetrates Wall. 03440_ W-25 Informer sends out distress signal. Map ----- +----------------------------------------------------+ | ?????????????????^???????# ########+##### | | ????????????????? ???????# ?????? ??# | | ????????????????? ???????# ???? !!! + | | ????????????????? ???##?? ???# !!! #### ### | | ????????????????? ??? ?? ???# !!! #??# ##?? | | #???????????????? ???# ?? ???# #??# #??? | | ????????????????? ???# ?###???# "" "" #??# #??? | | ????????????????? ?### ###????# ""S"" #??# #??? | | ????????????????? ?# #????# """" #??# #??? | | ???????????????????# ################### ## " | | ???????????????????# ! / | | ???????????????????# [####################### | | ???????????????????# #???????????????????????# | | ???????????????????## ########## ##????????????? | | ????????????????????# # ?????????????? | | ????????????????????# " Y""" ???????????????? | | ????????????????????# # """ ???????????????? | | ????????????????????# # """ ???????????????? | | ????????????????????# # "" ????????????????? | | ????????????????????# #s "" !?????????????????? | | ????????????????????# # !?????????????????? | | ????????????????????# # !! ??????????????? | | ????????????????????# # " " +???????????? | | ????????????????????# # "R" #???????????? | | ????????????????????# # """ #???????????? | | ????????????????????# /@ = #???????????? | | ????????????????????# ###########??????????????? | | ????????????????????# #????????????????????????? | | ???????????????????###+######????????????????????? | | ???????????????????# #????????????????????? | | ???????????????????# #????????????????????? | | ???????????????????# #????????????????????? | | ???????????????????# #????????????????????? | | ???????????????????# #????????????????????? | | ???????????????????#] #????????????????????? | | ???????????????????# #????????????????????? | | ???????????????????# #????????????????????? | | ???????????????????##########????????????????????? | | ?????????????????????????????????????????????????? | | ?????????????????????????????????????????????????? | | ?????????????????????????????????????????????????? | | ?????????????????????????????????????????????????? | | ?????????????????????????????????????????????????? | | ?????????????????????????????????????????????????? | | ?????????????????????????????????????????????????? | | ?????????????????????????????????????????????????? | | ?????????????????????????????????????????????????? | | ?????????????????????????????????????????????????? | | ?????????????????????????????????????????????????? | | ?????????????????????????????????????????????????? | +----------------------------------------------------+ Best States ------------- Heat Dissipation 51 Energy Generation 31 Energy Capacity 510 Matter Stores 300 Matter Capacity 300 Sight Range 20 Robot Scan Range 15 Terrain Scan Density 10 ECM Strength 2 Additional Mass Support 9 Armor Coverage 450 Evasion (%) 55 Targeting Accuracy 16 Recoil Reduction 2 Item Schematics ----------------- Hrd. Light Armor Plating | -8/Materials | Scanalyzed Imp. Carbon-fiber Leg | -8/Materials | Scanalyzed Robot Schematics ------------------ None Fabricated ------------ Nothing Alien Tech Used ----------------- None Achievements -------------- The More The Merrier Challenges ------------ None Game ------ Seed CloakBombCompactor Manual? 0 Play Time 01:04:43 Cumulative 9.9 hours Start 2022.03.18 @ 11:30:17 End 2022.03.18 @ 12:40:23 Sessions 1 Manual Loads 0 Difficulty Rogue Special Mode None Game No. 12 Rogue 12 Adventurer 0 Explorer 0 Win Type - Total 0 Types 0/0/0/0/0/0/0/0/0 Lore% 11 Gallery% 14 Achievement% 10 Wizard Run 0 Options --------- ASCII 0 Keyboard 0 Movement Mouse Keybinds 0 Fullscreen 2 Font 18/SmallcapsGlow Map View 76x50 Tactical HUD 1 Map Filters NONE Filters NONE Steam 1 RUN: 2ed23f50-05de-4c82-847f-f5ee2d3126df